Workbook

Sheet Příkaz
K1: Evidenční číslo:
B2: CESTOVNÍ PŘÍKAZ K USKUTEČNĚNÍ ZAHRANIČNÍ PRACOVNÍ CESTY
B4: Jméno a příjmení: | K4: Útvar:
B6: Zahájení cesty | D6: Datum: | H6: Místo:
B8: Místo konání: | X8: Stát, místo, pořadatel
B10: Účel:
B12: Očekávaný přínos/výstup:
B14: Ukončení cesty | D14: Datum: | H14: Místo:
B16: Jízdné hradí:
B18: Návrh na určení dopravního prostředku: | G18: A | I18: =IF(G18<>"",(VLOOKUP(G18,List1!B3:C11,2,FALSE)),"") -> Autobus | N18: =IF(G18="V","Jízdenku zařizuje:",IF(G18="A","Jízdenku zařizuje:",IF(G18="L","Letenku zařizuje:",""))) -> Jízdenku zařizuje: | R18: ZO PF UK
B20: Předpokládaná výše jízdních výdajů za jehož použití mají být poskytnuty náhrady jízdních výdajů:
B22: Úhrada ostatních výdajů (PF UK, grant nebo projekt) | K22: Předpokládáná výše ostatních výdajů v Kč
B24: Ubytování hradí: | X24: (PF UK, grant nebo projekt) | Z24: částka v Kč
Z25: částka v Kč
B26: Stravné hradí: | X26: (PF UK, grant nebo projekt) | Z26: částka v Kč
Z27: částka v Kč
B28: Nutné vedl. výd. hradí: | X28: (PF UK, grant nebo projekt) | Z28: částka v Kč
B30: Nutné vedlejší výdaje specifikace: | X30: Specifikace
B32: ="Cestovní pojištění ("&List1!R2&"), zajištuje a hradí:" -> Cestovní pojištění (1 den), zajištuje a hradí: | G32: ZO PF UK | K32: Předpokládáné výdaje celkem | R32: =IF(OR(G18="SV",G18="SJ"),R24+R26+R28,R20+R24+R26+R28) -> 0
B34: Žádám o zálohu: | D34: Ne | G34: Výše zálohy: | M34: CZK | X34: =IF(D34<>"",IF(J34<>"",(IF(M34="CZK",1,VLOOKUP(TODAY(),'Kurzy CNB'!$A$1:$AH$85,VLOOKUP(M34,List1!$S$4:$T$36,2,FALSE),TRUE)))*J34,""),"") ->  | Z34: Výše v Kč podle naposledy aktualizovaného kurzu
D35: =IF(AND(D34="Ano, na bank. Účet",M34<>"CZK"),"Na účet lze pouze CZK","") ->  | O35: Číslo bankovního účtu
B37: POUŽITÍ SOUKROMÉHO VOZIDLA NA PRACOVNÍ CESTU
B38: Vyplní řidič vozidla (zaměstnanec) před cestou.
B40: Vlastník vozidla:
B42: Řidič vozidla: | F42: =IF(D4="","",D4) -> 
B44: RZ vozidla: | J44: Typ vozu:
B46: Datum povinn. proškolení řidiče: | J46: Číslo havarijní pojistky:
B48: Spolucestující:
B50: Prohlašuji, že vozidlo použité na této služební cestě | H50: NENÍ | J50: v evidenci plátců silniční daně pro rok 2020.
B51: Prohlašuji, že mám platný řidičský průkaz.
B52: Přílohy: | C52: - kopie velkého technického průkazu (datum aktuální technické kontroly) - kopie dokladu o zaplacení havarijního pojištění (pokud jste už neodevzdali na ekonomickém oddělení.)
C54: =IF(OR(G18="V",G18="A - VV",G18="V - VV",G18="L - VV",G18="A - VV",G18="A",G18="L",)," - doklad o předpokládané výši jízdních výdajů za dopravní prostředek, za jehož použití mají být poskytnuty náhrady jízdních výdajů","") -> - doklad o předpokládané výši jízdních výdajů za dopravní prostředek, za jehož použití mají být poskytnuty náhrady jízdních výdajů
B55: ="Žádám o náhradu jízdních výdajů "&IF(G18="VV","za každý kilometr jízdy sazbou základní náhrady a náhradou za spotřebované pohonné hmoty podle zákonných sazeb platných v době konání pracovní cesty.",IF(OR(G18="V - VV",G18="V"),"ve výši odpovídající ceně jízdenky za vlak do výše " & R20 &" Kč.",IF(OR(G18="A - VV",G18="A"),"ve výši odpovídající ceně jízdenky za autobus do výše " &R20&" Kč.",IF(OR(G18="L - VV",G18="L"),"ve výši odpovídající ceně letenky do výše " &R20&" Kč.","- NE.")))) -> Žádám o náhradu jízdních výdajů ve výši odpovídající ceně jízdenky za autobus do výše Kč.
B58: V Praze dne | J58: Podpis zaměstnance
B70: Podpis řešitele grantu nebo projektu | K70: Podpis přímého nadřízeného
B74: Podpis vedoucího zahraničního oddělení | K74: Podpis tajemníka (správce rozpočtu)
B78: Podpis vedoucího ekonomického oddělení | K78: Podpis děkana

Sheet Vyúčtování test (hidden)
B2: VYÚČTOVÁNÍ PRACOVNÍ CESTY
B3: Datum | D3: Odjezd - příjezd | G3: Použitý dopr. prostředek2) | H3: Vzdálenost v km 1) | I3: Jízdné v případě AUV | J3: Jízdné a místní přeprava | K3: Stravné | L3: Noc- ležné | M3: Nutné vedlejší výdaje | N3: Celkem | R3: Upraveno
F4: v hod. | J4: Kč | K4: Kč | L4: Kč | M4: Kč | N4: Kč | R4: Kč | Y4: Vozidlo
B5: 2020-01-02 | C5: Odjezd | F5: 10:00:00 | I5: =IF(G5="VV",ROUND(H5*$Z$14+H5*$Z$18,2),"") ->  | K5: =R26 -> 691 | N5: =(N(I5)+J5+L5+M5) -> 0 | Q5: =VLOOKUP(P27,$AC$12:$AG$16,Q27+1,FALSE) -> 91 | T5: =IF(B5="","",IF(B7="","konec","průběh")) -> průběh | U5: =VLOOKUP(IF(B5="",0,(IF(B5=B3,1000,100)+IF(B5=B7,10,1))),List1!$B$22:$D$26,3,FALSE) -> 4 | V5: =B5 -> 2020-01-02 | W5: =IF(V5<>0,B5+F5,"") -> 2020-01-02T10:00:00 | Y5: SPZ
C6: Příjezd | F6: 12:00:00 | V6: =B5 -> 2020-01-02 | W6: =IF(V5<>0,B5+F6,"") -> 2020-01-02T12:00:00 | Y6: Palivo | Z6: nafta | AD6: =AD8 -> 43832
B7: 2020-01-05 | C7: Odjezd | F7: 15:00:00 | I7: =IF(G7="VV",ROUND(H7*$Z$14+H7*$Z$18,2),"") ->  | N7: =(N(I7)+J7+L7+M7) -> 0 | Q7: =VLOOKUP(P28,$AC$12:$AG$16,Q28+1,FALSE) -> 200 | T7: =IF(B7="","",IF(B9="","konec","průběh")) -> konec | U7: =VLOOKUP(IF(B7="",0,(IF(B7=B5,1000,100)+IF(B7=B9,10,1))),List1!$B$22:$D$26,3,FALSE) -> 4 | V7: =B7 -> 2020-01-05 | W7: =IF(V7<>0,B7+F7,"") -> 2020-01-05T15:00:00 | Y7: spotřeba 1 | Z7: 3.1
C8: Příjezd | F8: 20:00:00 | V8: =B7 -> 2020-01-05 | W8: =IF(V7<>0,B7+F8,"") -> 2020-01-05T20:00:00 | Y8: spotřeba 2 | AD8: =MIN(B5:B20) -> 2020-01-02 | AE8: =MIN(W5:W20) -> 2020-01-02T10:00:00
C9: Odjezd | I9: =IF(G9="VV",ROUND(H9*$Z$14+H9*$Z$18,2),"") ->  | N9: =(N(I9)+J9+L9+M9) -> 0 | T9: =IF(B9="","",IF(B11="","konec","průběh")) ->  | U9: =VLOOKUP(IF(B9="",0,(IF(B9=B7,1000,100)+IF(B9=B11,10,1))),List1!$B$22:$D$26,3,FALSE) -> 5 | V9: =B9 -> 00:00:00 | W9: =IF(V9<>0,B9+F9,"") ->  | Y9: spotřeba 3 | AD9: =MAX(B5:B20) -> 2020-01-05 | AE9: =MAX(W5:W20) -> 2020-01-05T20:00:00
C10: Příjezd | V10: =B9 -> 00:00:00 | W10: =IF(V9<>0,B9+F10,"") ->  | Y10: spotřeba 4
C11: Odjezd | I11: =IF(G11="VV",ROUND(H11*$Z$14+H11*$Z$18,2),"") ->  | N11: =(N(I11)+J11+L11+M11) -> 0 | T11: =IF(B11="","",IF(B13="","konec","průběh")) ->  | U11: =VLOOKUP(IF(B11="",0,(IF(B11=B9,1000,100)+IF(B11=B13,10,1))),List1!$B$22:$D$26,3,FALSE) -> 5 | V11: =B11 -> 00:00:00 | W11: =IF(V11<>0,B11+F11,"") ->  | Y11: Průměr - použitá spotřeba | Z11: =ROUND(AVERAGE(Z7:Z10),2) -> 3.1 | AD11: 0 - 5 hod | AE11: 5 až 12 hod. | AF11: 12 až 18 hod. | AG11: více než 18 hod.
C12: Příjezd | V12: =B11 -> 00:00:00 | W12: =IF(V11<>0,B11+F12,"") ->  | Y12: Cena paliva z dokladu | AA12: Pokud nezadáte cenu paliva z dokladu, bude použita cena z vyhlášky | AC12: počet jídel | AD12: 0 | AE12: I | AF12: II | AG12: III
C13: Odjezd | I13: =IF(G13="VV",ROUND(H13*$Z$14+H13*$Z$18,2),"") ->  | N13: =(N(I13)+J13+L13+M13) -> 0 | T13: =IF(B13="","",IF(B15="","konec","průběh")) ->  | U13: =VLOOKUP(IF(B13="",0,(IF(B13=B11,1000,100)+IF(B13=B15,10,1))),List1!$B$22:$D$26,3,FALSE) -> 5 | V13: =B13 -> 00:00:00 | W13: =IF(V13<>0,B13+F13,"") ->  | Y13: Náhrady | AC13: 0 | AD13: 0 | AE13: 90 | AF13: 140 | AG13: 200
C14: Příjezd | V14: =B13 -> 00:00:00 | W14: =IF(V13<>0,B13+F14,"") ->  | Y14: amortizace za km | Z14: 4.1 | AC14: 1 | AD14: 0 | AE14: =AE13*0.3 -> 27 | AF14: =0.65*AF13 -> 91 | AG14: =0.75*AG13 -> 150
C15: Odjezd | I15: =IF(G15="VV",ROUND(H15*$Z$14+H15*$Z$18,2),"") ->  | N15: =(N(I15)+J15+L15+M15) -> 0 | T15: =IF(B15="","",IF(B17="","konec","průběh")) ->  | U15: =VLOOKUP(IF(B15="",0,(IF(B15=B13,1000,100)+IF(B15=B17,10,1))),List1!$B$22:$D$26,3,FALSE) -> 5 | V15: =B15 -> 00:00:00 | W15: =IF(V15<>0,B15+F15,"") ->  | Y15: benzin 95 oktanů | Z15: 33.1 | AC15: 2 | AD15: 0 | AE15: 0 | AF15: =0.3*AF13 -> 42 | AG15: =0.5*AG13 -> 100
C16: Příjezd | V16: =B15 -> 00:00:00 | W16: =IF(V15<>0,B15+F16,"") ->  | Y16: benzin 98 oktanů | Z16: 37.1 | AC16: 3 | AD16: 0 | AE16: 0 | AF16: 0 | AG16: =0.25*AG13 -> 50
C17: Odjezd | I17: =IF(G17="VV",ROUND(H17*$Z$14+H17*$Z$18,2),"") ->  | N17: 0 | T17: =IF(B17="","",IF(B19="","konec","průběh")) ->  | U17: =VLOOKUP(IF(B17="",0,(IF(B17=B15,1000,100)+IF(B17=B19,10,1))),List1!$B$22:$D$26,3,FALSE) -> 5 | V17: =B17 -> 00:00:00 | W17: =IF(V17<>0,B17+F17,"") ->  | Y17: nafta | Z17: 33.6
C18: Příjezd | V18: =B17 -> 00:00:00 | W18: =IF(V17<>0,B17+F18,"") ->  | Y18: náhrada za km paliva | Z18: =ROUND(IF(Z12=0,(VLOOKUP(Z6,Y15:Z17,2,FALSE)),Z12)*Z11/100,4) -> 1.0416 | AA18: =IF(Z12<>"","použita cena z dokladu","použita cena z vyhlášky") -> použita cena z vyhlášky
C19: Odjezd | I19: =IF(G19="VV",ROUND(H19*$Z$14+H19*$Z$18,2),"") ->  | N19: 0 | T19: =IF(B19="","",IF(B21="","konec","průběh")) ->  | U19: =VLOOKUP(IF(B19="",0,(IF(B19=B17,1000,100)+IF(B19=B21,10,1))),List1!$B$22:$D$26,3,FALSE) -> 5 | V19: =B19 -> 00:00:00 | W19: =IF(V19<>0,B19+F19,"") -> 
C20: Příjezd | V20: =B19 -> 00:00:00 | W20: =IF(V19<>0,B19+F20,"") -> 
H21: Celkem | I21: =SUM(I5:I20) -> 0 | J21: =SUM(J5:J20) -> 0 | K21: =SUM(K5:K20) -> 691 | L21: =IF(E23="ano",0,SUM(L5:L20)) -> 0 | M21: =SUM(M5:M20) -> 0 | N21: =SUM(I21:M21) -> 691
B22: Strava poskytnuta bezplatně | E22: ano | H22: Záloha
B23: Ubytování poskytnuto bezplatně:* | E23: ano | H23: =IF((N21-N22)<0,"Přeplatek (účtovatel vrátí)", "Doplatek (účtovateli bude doplaceno)") -> Doplatek (účtovateli bude doplaceno) | N23: =ABS(CEILING(N21-N22,1)) -> 691
P24: =IF(O28="",1,IF((O27+O28)<=5/24,1,IF((O27+O28)<=12/24,2,IF((O27+O28)<=18/24,3,4)))) -> 4 | Q24: =VLOOKUP((IF((P28+P27)>3,3,(P28+P27))),$AC$12:$AG$16,P24+1,FALSE) -> 150
B25: V - Vlak | C25: SV - služební vozidlo | E25: V - VV - vlastní vozidlo s náhradou výdajů za vlak | K25: Bezplatně poskytnutá strava | P25: počet jídel | Q25: skupina | R25: Celkem | Y25: Přehled EU norem používaných v TP
B26: A - autobus | C26: CV - spolujízda | E26: A - VV - vlastní vozidlo s náhradou výdajů za autobus | K26: Datum | L26: snídaně | M26: oběd | N26: večeře | O26: doba | R26: =SUM(R27:R43) -> 691 | Y26: 80/1268/EHS | Z26: arit.průměr | AA26: 3 údaje v TP
B27: L - letadlo | C27: VV - vlastní vozidlo | E27: L - VV - vlastní vozidlo s náhradou výdajů za letadlo | K27: =IF(AD8<>0,AD8,"") -> 2020-01-02 | L27: ano | O27: =IF(K27<>"",IF(K28<>0,K27+1-AE8,AE9-AE8),"") -> 0.5833333333 | P27: =IF($E$22="ne",0,IF(LEFT(L27,1)="A",1,0)+IF(LEFT(M27,1)="A",1,0)+IF(LEFT(N27,1)="A",1,0)) -> 1 | Q27: =IF(OR(O27<=5/24+1/24/60/60/100,O27=""),1,IF(O27<=12/24,2,IF(O27<=18/24,3,4))) -> 3 | R27: =IF(AND(K29="",(Q7+Q5)<Q24),0,Q5) -> 91 | Y27: 93/116/ES | Z27: třetí údaj
K28: =IF(($AD$8+List1!A2)<=$AD$9,$AD$8+List1!A2,"") -> 2020-01-03 | O28: =IF(K28<>"",IF(K29<>"",1,$AE$9-K28),"") -> 1 | P28: 0 | Q28: =IF(OR(O28<=5/24+1/24/60/60/100,O28=""),1,IF(O28<=12/24,2,IF(O28<=18/24,3,4))) -> 4 | R28: =IF(AND(K29="",(Q7+Q5)<Q24),Q24,Q7) -> 200 | Y28: 1999/100/ES | Z28: třetí údaj
K29: =IF(($AD$8+List1!A3)<=$AD$9,$AD$8+List1!A3,"") -> 2020-01-04 | O29: 1 | P29: 0 | Q29: 4 | R29: =VLOOKUP(P29,$AC$12:$AG$16,Q29+1,FALSE) -> 200 | Y29: 2004/3/ES | Z29: třetí údaj
B30: Zdroj financování (PF UK, grant, jiný zdroj): | F30: Zpráva o výsledku pracovní cesty byla podána dne: | K30: =IF(($AD$8+List1!A4)<=$AD$9,$AD$8+List1!A4,"") -> 2020-01-05 | O30: 0.8333333333 | P30: 0 | Q30: 4 | R30: 200 | Y30: EU 692/2008 | Z30: třetí údaj
K31: =IF(($AD$8+List1!A5)<=$AD$9,$AD$8+List1!A5,"") ->  | P31: 0 | Q31: 1 | R31: 0 | Y31: EU 692/2008A,…F | Z31: třetí údaj
K32: =IF(($AD$8+List1!A6)<=$AD$9,$AD$8+List1!A6,"") ->  | P32: 0 | Q32: 1 | R32: 0 | Y32: EU/566/2011 | Z32: třetí údaj
K33: =IF(($AD$8+List1!A7)<=$AD$9,$AD$8+List1!A7,"") ->  | P33: 0 | Q33: 1 | R33: 0 | Y33: 2007/46/ES | Z33: třetí údaj
B34: Číslo bankovního účtu pro zasílání náhrad účtovateli: | K34: =IF(($AD$8+List1!A8)<=$AD$9,$AD$8+List1!A8,"") ->  | P34: 0 | Q34: 1 | R34: 0 | Y34: EHK 101,R101.00 | Z34: třetí údaj
K35: =IF(($AD$8+List1!A9)<=$AD$9,$AD$8+List1!A9,"") ->  | P35: 0 | Q35: 1 | R35: 0 | Y35: 459/2012/EU | Z35: třetí údaj
K36: =IF(($AD$8+List1!A10)<=$AD$9,$AD$8+List1!A10,"") ->  | P36: 0 | Q36: 1 | R36: 0 | Y36: 630/2012/EU | Z36: třetí údaj
B37: Prohlašuji, že jsem všechny údaje uvedl úplně a správně. | K37: =IF(($AD$8+List1!A11)<=$AD$9,$AD$8+List1!A11,"") ->  | P37: 0 | Q37: 1 | R37: 0 | Y37: EU195/2013 | Z37: třetí údaj
K38: =IF(($AD$8+List1!A12)<=$AD$9,$AD$8+List1!A12,"") ->  | P38: 0 | Q38: 1 | R38: 0 | Y38: 715/2007/ES | Z38: třetí údaj
K39: =IF(($AD$8+List1!A13)<=$AD$9,$AD$8+List1!A13,"") ->  | P39: 0 | Q39: 1 | R39: 0 | Y39: EU136/2014 | Z39: třetí údaj
K40: =IF(($AD$8+List1!A14)<=$AD$9,$AD$8+List1!A14,"") ->  | P40: 0 | Q40: 1 | R40: 0 | Y40: EU2016/646 | Z40: třetí údaj
K41: =IF(($AD$8+List1!A15)<=$AD$9,$AD$8+List1!A15,"") ->  | P41: 0 | Q41: 1 | R41: 0 | Y41: EU2017/1347 | Z41: třetí údaj
B42: Datum a podpis účtovatele | K42: =IF(($AD$8+List1!A16)<=$AD$9,$AD$8+List1!A16,"") ->  | P42: 0 | Q42: 1 | R42: 0 | Y42: EU2015/45 | Z42: třetí údaj
K43: =IF(($AD$8+List1!A17)<=$AD$9,$AD$8+List1!A17,"") ->  | P43: 0 | Q43: 1 | R43: 0 | Y43: jiná norma | Z43: arit.průměr
B47: Se způsobem provedení vyučtování souhlasí:
J50: Podpis přímého nadřízeného nebo řešitele grantu, projektu…
B52: Datum a podpis správce rozpočtu (tajemníka)
B56: Podpis vedoucího ekonom. odd. | J56: Podpis zaměstnance, který kontroloval a upravil vyúčtování (pokladní)

Sheet Vyúčtování
AH1: =60*60*24 -> 86400
B2: VYÚČTOVÁNÍ ZAHRANIČNÍ PRACOVNÍ CESTY | AA2: ="Kurzy ČNB jsou aktualizovány k "&TEXT(MAX('Kurzy CNB'!A2:A389),"dd.mm.rrrr") -> Kurzy ČNB jsou aktualizovány k 03.02.2020
B3: Jméno a příjmení
B4: Název akce | M4: stát | AJ4: Vozidlo
B5: Místo akce | M5: Německo | AJ5: SPZ
E6: datum | F6: čas | G6: místo | M6: základní sazba zahraničního stravného | AJ6: Palivo | AK6: benzin 95 oktanů | AO6: =AO8 -> 0
B7: Zahájení cesty | E7: 2020-01-02 | F7: 08:00:00 | R7: =E7+F7 -> 2020-01-02T08:00:00 | AJ7: spotřeba 1 | AK7: 10 | AL7: Doplňte kombinovanou spotřebu dle norem EU z TP a ostatní pole ponechte prázdné
B8: Překročení státní hranice/odlet | E8: 2020-01-02 | F8: 08:00:00 | G8: =IF(R8<R7,"překročení hranice nemůže být před začátkem cesty","") ->  | M8: =VLOOKUP(M5,List1!V3:Y180,4,FALSE) -> 45 | N8: =VLOOKUP(M5,List1!V3:Y180,2,FALSE) -> EUR | R8: =E8+F8 -> 2020-01-02T08:00:00 | AJ8: spotřeba 2 | AL8: Pokud údaj o kombinované spotřebě v technickém průkazu není, vypočte se spotřeba PHM vozidla aritmetickým průměrem ze všech údajů o spotřebě uvedených v technickém průkazu.
B9: Překročení státní hranice/přílet | G9: =IF(OR(E7>MAX('Kurzy CNB'!A2:A389),E16>MAX('Kurzy CNB'!A2:A389)),"Začátek cesty nebo datum zálohy je v období mimo načtené kurzy ČNB","") ->  | M9: použit kurz ze dne | R9: =E9+F9 -> 00:00:00 | AJ9: spotřeba 3
B10: Ukončení cesty | M10: =IF(AND(E16<>"",E14<>"NE",OR(F16<>"",F17<>"")),E16,E7) -> 2020-01-02 | R10: =E10+F10 -> 00:00:00 | AJ10: spotřeba 4
B11: Strava poskytnuta bezplatně | E11: ano | G11: Celková vzdálenost v km při použití VV | AJ11: Průměr - použitá spotřeba | AK11: =ROUND(AVERAGE(AK7:AK10),2) -> 10 | AO11: 0 - 5 hod | AP11: 5 až 12 hod. | AQ11: 12 až 18 hod. | AR11: více než 18 hod.
B12: Použitý dopr. prostředek | E12: V | H12: =IF(E12="VV",CEILING(G12*$AK$16+G12*$AK$21,0.01),"") ->  | AJ12: Cena paliva z dokladu | AL12: EUR | AN12: počet jídel | AO12: 0 | AP12: I | AQ12: II | AR12: III
AJ13: Cena paliva z dokladu CZK | AK13: =CEILING(IF(AK12<>"",IF(AL12<>"",(IF(AL12="CZK",1,VLOOKUP($M$10,'Kurzy CNB'!$A$1:$AH$85,VLOOKUP(AL12,List1!$S$4:$T$36,2,FALSE),TRUE)))*AK12/VLOOKUP(AL12,List1!$S$3:$U$36,3,FALSE),0),0),0.0001) -> 0 | AN13: 0 | AO13: 0 | AP13: 100 | AQ13: 150 | AR13: 220
B14: Poskytnuta záloha | E14: ne | G14: částka | H14: měna | I14: kurz ČNB | AJ14: Náhrady | AN14: 1 | AO14: 0 | AP14: =AP13*0.3 -> 30 | AQ14: =0.65*AQ13 -> 97.5 | AR14: =0.75*AR13 -> 165
B16: Záloha 1 | D16: vydaná dne | E16: 2020-01-10 | H16: EUR | I16: =IF(OR(E16="",H16="CZK"),1,VLOOKUP(E16,'Kurzy CNB'!$A$1:$AH$85,VLOOKUP(H16,List1!$S$4:$T$36,2,FALSE),TRUE)) -> 25.265 | J16: =CEILING(I16*F16,0.001) -> 0 | AJ16: amortizace za km | AK16: 4.2 | AN16: 2 | AO16: 0 | AP16: 0 | AQ16: =0.3*AQ13 -> 45 | AR16: =0.5*AR13 -> 110
B17: Záloha 2 | D17: vydaná dne | E17: =E16 -> 2020-01-10 | H17: CZK | I17: =IF(OR(E17="",H17="CZK",H17=""),1,VLOOKUP(E17,'Kurzy CNB'!$A$1:$AH$85,VLOOKUP(H17,List1!$S$4:$T$36,2,FALSE),TRUE)) -> 1 | J17: =CEILING(I17*F17,0.001) -> 0 | AJ17: benzin 95 oktanů | AK17: 32 | AN17: 3 | AO17: 0 | AP17: 0 | AQ17: 0 | AR17: =0.25*AR13 -> 55
AJ18: benzin 98 oktanů | AK18: 36
B19: VYÚČTOVÁNÍ | AJ19: nafta | AK19: 31.8
D20: Popis | F20: měna | G20: částka | H20: měna | I20: částka | K20: Stravné | AJ20: elektřina | AK20: 4.8
B21: Jízdní výdaje | D21: Vlastní vozidlo - VV | F21: CZK | G21: =H12 ->  | H21: CZK | I21: =G21 ->  | K21: měna | L21: částka | M21: měna | N21: částka | AJ21: náhrada za km paliva | AK21: =ROUND(IF(AK13=0,(VLOOKUP(AK6,AJ17:AK20,2,FALSE)),AK13)*AK11/100,4) -> 3.2 | AL21: =IF(AK13<>"","použita cena z dokladu","použita cena z vyhlášky") -> použita cena z dokladu
F22: CZK | H22: CZK | I22: =IF(G22<>"",IF(F22<>"",(IF(F22="CZK",1,VLOOKUP($M$10,'Kurzy CNB'!$A$1:$AH$85,VLOOKUP(F22,List1!$S$4:$T$36,2,FALSE),TRUE)))*G22/VLOOKUP(F22,List1!$S$3:$U$36,3,FALSE),""),"") ->  | K22: CZK | L22: =CEILING(SUM(Z27:Z55),0.01) -> 0 | M22: CZK | N22: =L22 -> 0
F23: EUR | H23: CZK | I23: =IF(G23<>"",IF(F23<>"",(IF(F23="CZK",1,VLOOKUP($M$10,'Kurzy CNB'!$A$1:$AH$85,VLOOKUP(F23,List1!$S$4:$T$36,2,FALSE),TRUE)))*G23/VLOOKUP(F23,List1!$S$3:$U$36,3,FALSE),""),"") ->  | K23: =N8 -> EUR | L23: =CEILING(SUM(AA27:AA55),0.01) -> 0 | M23: CZK | N23: =IF(L23<>"",VLOOKUP($M$10,'Kurzy CNB'!$A$1:$AH$85,VLOOKUP(K23,List1!$S$4:$T$36,2,FALSE),TRUE))*L23/VLOOKUP(K23,List1!$S$3:$U$36,3,FALSE) -> 0 | AO23: zahra
H24: CZK | I24: =IF(G24<>"",IF(F24<>"",(IF(F24="CZK",1,VLOOKUP($M$10,'Kurzy CNB'!$A$1:$AH$85,VLOOKUP(F24,List1!$S$4:$T$36,2,FALSE),TRUE)))*G24/VLOOKUP(F24,List1!$S$3:$U$36,3,FALSE),""),"") -> 
B25: Výdaje za ubytování | H25: CZK | I25: =IF(G25<>"",IF(F25<>"",(IF(F25="CZK",1,VLOOKUP($M$10,'Kurzy CNB'!$A$1:$AH$85,VLOOKUP(F25,List1!$S$4:$T$36,2,FALSE),TRUE)))*G25/VLOOKUP(F25,List1!$S$3:$U$36,3,FALSE),""),"") ->  | K25: Bezplatně poskytnutá strava | V25: počet jídel | Z25: CZK | AA25: =N8 -> EUR | AC25: Celkem | AO25: 0 - 1 hod | AP25: 1 až 12 hod. | AQ25: 12 až 18 hod. | AR25: více než 18 hod.
H26: CZK | I26: =IF(G26<>"",IF(F26<>"",(IF(F26="CZK",1,VLOOKUP($M$10,'Kurzy CNB'!$A$1:$AH$85,VLOOKUP(F26,List1!$S$4:$T$36,2,FALSE),TRUE)))*G26/VLOOKUP(F26,List1!$S$3:$U$36,3,FALSE),""),"") ->  | K26: Datum | L26: snídaně | M26: oběd | N26: večeře | O26: doba | P26: začátek zahr | Q26: konec zahr | R26: doba zahr | S26: doba CR | T26: přep zahr | U26: přep CR | W26: kod zahr | X26: kod tuz | Z26: stravne CR | AA26: stravne zahr | AN26: počet jídel | AO26: 0 | AP26: I | AQ26: II | AR26: III
B27: Ostatní výdaje | H27: CZK | I27: =IF(G27<>"",IF(F27<>"",(IF(F27="CZK",1,VLOOKUP($M$10,'Kurzy CNB'!$A$1:$AH$85,VLOOKUP(F27,List1!$S$4:$T$36,2,FALSE),TRUE)))*G27/VLOOKUP(F27,List1!$S$3:$U$36,3,FALSE),""),"") ->  | K27: =IF(E7<>0,E7,"") -> 2020-01-02 | O27: =IF(K27<>"",IF(K28<>"",K27+1-R7,R10-R7),"") -> -43832.33333 | P27: =IF(OR($E$8>K27,$E$9<K27),"",IF(K27=$E$8,$R$8,K27)) ->  | Q27: =IF(OR($E$8>K27,$E$9<K27),"",IF(K27=$E$9,$R$9,K27+1)) ->  | R27: =IF(P27="","",Q27-P27) ->  | S27: =IF(O27<>"",IF(R27<>"",O27-R27,O27),"") -> -43832.33333 | T27: =IF(S27<5/24,R27,IF(R27<=(5/24+0.0000001),"",R27)) ->  | U27: =IF(S27>=5/24,IF(R27<=(5/24+0.0000001),S27+R27,S27),S27) -> -43832.33333 | V27: =IF($E$11="ne",0,IF(LEFT(L27,1)="A",1,0)+IF(LEFT(M27,1)="A",1,0)+IF(LEFT(N27,1)="A",1,0)) -> 0 | W27: =IF(T27<>"",(IF(T27<(1/24-0.0000001),1,(IF(T27<=12/24,2,IF(T27<=18/24,3,4))))),"") ->  | X27: =IF(U27<>"",(IF(U27<5/24,1,(IF(U27<=12/24,2,IF(U27<=18/24,3,4))))),"") -> 1 | Z27: =IF(X27<>"",IF(W27="",VLOOKUP(V27,$AN$12:$AR$17,X27+1,FALSE),VLOOKUP(0,$AN$12:$AR$17,X27+1)),"") -> 0 | AA27: =IF(W27="","",IF(X27=1,VLOOKUP(V27,$AN$26:$AR$30,W27+1,FALSE),VLOOKUP(V27,$AN$26:$AR$30,3,FALSE))) ->  | AN27: 0 | AO27: 0 | AP27: =AR27/3 -> 15 | AQ27: =AR27*2/3 -> 30 | AR27: =M8 -> 45
H28: CZK | I28: =IF(G28<>"",IF(F28<>"",(IF(F28="CZK",1,VLOOKUP($M$10,'Kurzy CNB'!$A$1:$AH$85,VLOOKUP(F28,List1!$S$4:$T$36,2,FALSE),TRUE)))*G28/VLOOKUP(F28,List1!$S$3:$U$36,3,FALSE),""),"") ->  | K28: =IF(($E$7+List1!A2)<=$E$10,$E$7+List1!A2,"") ->  | O28: =IF(K28<>"",IF(K29<>"",1,$R$10-K28),"") ->  | P28: =IF(OR($E$8>K28,$E$9<K28),"",IF(K28=$E$8,$R$8,K28)) ->  | Q28: =IF(OR($E$8>K28,$E$9<K28),"",IF(K28=$E$9,$R$9,K28+1)) -> 00:00:00 | R28: =IF(P28="","",Q28-P28) ->  | T28: =IF(S28<5/24,R28,IF(R28<=(5/24+0.0000001),"",R28)) ->  | U28: =IF(S28>=5/24,IF(R28<=(5/24+0.0000001),S28+R28,S28),S28) ->  | V28: 0 | W28: =IF(T28<>"",(IF(T28<(1/24-0.0000001),1,(IF(T28<=12/24,2,IF(T28<=18/24,3,4))))),"") ->  | X28: =IF(U28<>"",(IF(U28<5/24,1,(IF(U28<=12/24,2,IF(U28<=18/24,3,4))))),"") ->  | AA28: =IF(W28="","",IF(X28=1,VLOOKUP(V28,$AN$26:$AR$30,W28+1,FALSE),VLOOKUP(V28,$AN$26:$AR$30,3,FALSE))) ->  | AN28: 1 | AO28: 0 | AP28: =AP27*0.3 -> 4.5 | AQ28: =0.65*AQ27 -> 19.5 | AR28: =0.75*AR27 -> 33.75
B29: Celkem (včetně stravného) | H29: CZK | I29: =SUM(I21:I28,N22:N23) -> 0 | K29: =IF(($E$7+List1!A3)<=$E$10,$E$7+List1!A3,"") ->  | Q29: =IF(OR($E$8>K29,$E$9<K29),"",IF(K29=$E$9,$R$9,K29+1)) -> 00:00:00 | T29: =IF(S29<5/24,R29,IF(R29<=(5/24+0.0000001),"",R29)) ->  | V29: 0 | AJ29: Přehled EU norem používaných v TP | AN29: 2 | AO29: 0 | AP29: 0 | AQ29: =0.3*AQ27 -> 9 | AR29: =0.5*AR27 -> 22.5
B30: Záloha | H30: CZK | I30: =IF(E14="ne",0,CEILING(J16+J17,0.01)) -> 0 | K30: =IF(($E$7+List1!A4)<=$E$10,$E$7+List1!A4,"") ->  | Q30: 00:00:00 | V30: 0 | AJ30: 80/1268/EHS | AK30: arit.průměr | AL30: 3 údaje v TP | AN30: 3 | AO30: 0 | AP30: 0 | AQ30: 0 | AR30: =0.25*AR27 -> 11.25
B31: =IF(I31<0,"Přeplatek (zaměstnanec vrátí)", "Doplatek (zaměstnanci bude doplaceno)") -> Doplatek (zaměstnanci bude doplaceno) | H31: CZK | I31: =(I29-I30)/(IF(H31="CZK",1,VLOOKUP($M$10,'Kurzy CNB'!$A$1:$AH$85,VLOOKUP(H31,List1!$S$4:$T$36,2,FALSE),TRUE))/VLOOKUP(H31,List1!$S$3:$U$36,3,FALSE)) -> 0 | K31: =IF(($E$7+List1!A5)<=$E$10,$E$7+List1!A5,"") ->  | Q31: 00:00:00 | V31: 0 | AJ31: 93/116/ES | AK31: třetí údaj
K32: =IF(($E$7+List1!A6)<=$E$10,$E$7+List1!A6,"") ->  | Q32: 00:00:00 | V32: 0 | AJ32: 1999/100/ES | AK32: třetí údaj
B33: Zdroj financování (PF UK, grant nebo projekt): | K33: =IF(($E$7+List1!A7)<=$E$10,$E$7+List1!A7,"") ->  | Q33: 00:00:00 | V33: 0 | AJ33: 2004/3/ES | AK33: třetí údaj
K34: =IF(($E$7+List1!A8)<=$E$10,$E$7+List1!A8,"") ->  | Q34: 00:00:00 | V34: 0 | AJ34: EU 692/2008 | AK34: třetí údaj
K35: =IF(($E$7+List1!A9)<=$E$10,$E$7+List1!A9,"") ->  | Q35: 00:00:00 | V35: 0 | AJ35: EU 692/2008A,…F | AK35: třetí údaj
K36: =IF(($E$7+List1!A10)<=$E$10,$E$7+List1!A10,"") ->  | Q36: 00:00:00 | V36: 0 | AJ36: EU/566/2011 | AK36: třetí údaj
K37: =IF(($E$7+List1!A11)<=$E$10,$E$7+List1!A11,"") ->  | Q37: 00:00:00 | V37: 0 | AJ37: 2007/46/ES | AK37: třetí údaj
B38: Číslo bankovního účtu pro zasílání náhrad zaměstnanci: | K38: =IF(($E$7+List1!A12)<=$E$10,$E$7+List1!A12,"") ->  | Q38: 00:00:00 | V38: 0 | AJ38: EHK 101,R101.00 | AK38: třetí údaj
K39: =IF(($E$7+List1!A13)<=$E$10,$E$7+List1!A13,"") ->  | Q39: 00:00:00 | V39: 0 | AJ39: 459/2012/EU | AK39: třetí údaj
K40: =IF(($E$7+List1!A14)<=$E$10,$E$7+List1!A14,"") ->  | Q40: 00:00:00 | V40: 0 | AJ40: 630/2012/EU | AK40: třetí údaj
K41: =IF(($E$7+List1!A15)<=$E$10,$E$7+List1!A15,"") ->  | Q41: 00:00:00 | V41: 0 | AJ41: EU195/2013 | AK41: třetí údaj
B42: Prohlašuji, že jsem všechny údaje uvedl úplně, a že je zpráva ze zahraniční pracovní cesty přiložena. | K42: =IF(($E$7+List1!A16)<=$E$10,$E$7+List1!A16,"") ->  | Q42: 00:00:00 | V42: 0 | AJ42: 715/2007/ES | AK42: třetí údaj
K43: =IF(($E$7+List1!A17)<=$E$10,$E$7+List1!A17,"") ->  | Q43: 00:00:00 | V43: 0 | AJ43: EU136/2014 | AK43: třetí údaj
K44: =IF(($E$7+List1!A18)<=$E$10,$E$7+List1!A18,"") ->  | Q44: 00:00:00 | T44: =IF(S44<5/24,R44,IF(R44<=(5/24+0.0000001),"",R44)) ->  | V44: 0 | AJ44: EU2016/646 | AK44: třetí údaj
K45: =IF(($E$7+List1!A19)<=$E$10,$E$7+List1!A19,"") ->  | Q45: 00:00:00 | T45: =IF(S45<5/24,R45,IF(R45<=(5/24+0.0000001),"",R45)) ->  | V45: 0 | AJ45: EU2017/1347 | AK45: třetí údaj
K46: =IF(($E$7+List1!A20)<=$E$10,$E$7+List1!A20,"") ->  | Q46: 00:00:00 | T46: =IF(S46<5/24,R46,IF(R46<=(5/24+0.0000001),"",R46)) ->  | V46: 0 | AJ46: EU2015/45 | AK46: třetí údaj
B47: Datum a podpis zaměstance | K47: =IF(($E$7+List1!A21)<=$E$10,$E$7+List1!A21,"") ->  | Q47: 00:00:00 | V47: 0 | AJ47: jiná norma | AK47: arit.průměr
K48: =IF(($E$7+List1!A22)<=$E$10,$E$7+List1!A22,"") ->  | Q48: 00:00:00 | V48: 0
K49: =IF(($E$7+List1!A23)<=$E$10,$E$7+List1!A23,"") ->  | Q49: 00:00:00 | V49: 0
K50: =IF(($E$7+List1!A24)<=$E$10,$E$7+List1!A24,"") ->  | Q50: 00:00:00 | V50: 0
B51: Podpis řešitele grantu nebo projektu | F51: Podpis vedoucího zahraničního oddělení | K51: =IF(($E$7+List1!A25)<=$E$10,$E$7+List1!A25,"") ->  | Q51: 00:00:00 | V51: 0
K52: =IF(($E$7+List1!A26)<=$E$10,$E$7+List1!A26,"") ->  | Q52: 00:00:00 | V52: 0
K53: =IF(($E$7+List1!A27)<=$E$10,$E$7+List1!A27,"") ->  | Q53: 00:00:00 | V53: 0
K54: =IF(($E$7+List1!A28)<=$E$10,$E$7+List1!A28,"") ->  | Q54: 00:00:00 | V54: 0
K55: =IF(($E$7+List1!A29)<=$E$10,$E$7+List1!A29,"") ->  | Q55: 00:00:00 | V55: 0
B56: Podpis přímého nadřízeného | F56: Podpis vedoucího ekonomického oddělení
B60: Podpis správce rozpočtu (tajemníka) | F60: Podpis pracovníka ekonomického oddělení, který kontroloval a upravil vyúčtování

Sheet Kurzy CNB
A1: Datum | B1: 1 AUD | C1: 1 BGN | D1: 1 BRL | E1: 1 CAD | F1: 1 CHF | G1: 1 CNY | H1: 1 DKK | I1: 1 EUR | J1: 1 GBP | K1: 1 HKD | L1: 1 HRK | M1: 100 HUF | N1: 1000 IDR | O1: 1 ILS | P1: 100 INR | Q1: 100 ISK | R1: 100 JPY | S1: 100 KRW | T1: 1 MXN | U1: 1 MYR | V1: 1 NOK | W1: 1 NZD | X1: 100 PHP | Y1: 1 PLN | Z1: 1 RON | AA1: 100 RUB | AB1: 1 SEK | AC1: 1 SGD | AD1: 100 THB | AE1: 1 TRY | AF1: 1 USD | AG1: 1 XDR | AH1: 1 ZAR
A2: 2020-01-02 | B2: 15.873 | C2: 12.991 | D2: 5.664 | E2: 17.461 | F2: 23.388 | G2: 3.26 | H2: 3.401 | I2: 25.41 | J2: 29.955 | K2: 2.914 | L2: 3.413 | M2: 7.701 | N2: 1.635 | O2: 6.567 | P2: 31.795 | Q2: 18.561 | R2: 20.87 | S2: 1.957 | T2: 1.202 | U2: 5.554 | V2: 2.582 | W2: 15.198 | X2: 44.697 | Y2: 5.972 | Z2: 5.314 | AA2: 36.716 | AB2: 2.426 | AC2: 16.845 | AD2: 75.296 | AE2: 3.81 | AF2: 22.702 | AG2: 31.393 | AH2: 1.613
A3: 2020-01-03 | B3: 15.821 | C3: 12.968 | D3: 5.599 | E3: 17.53 | F3: 23.396 | G3: 3.264 | H3: 3.393 | I3: 25.36 | J3: 29.797 | K3: 2.925 | L3: 3.406 | M3: 7.673 | N3: 1.634 | O3: 6.542 | P3: 31.699 | Q3: 18.524 | R3: 21.039 | S3: 1.95 | T3: 1.199 | U3: 5.547 | V3: 2.579 | W3: 15.169 | X3: 44.508 | Y3: 5.968 | Z3: 5.306 | AA3: 36.69 | AB3: 2.418 | AC3: 16.857 | AD3: 75.452 | AE3: 3.809 | AF3: 22.753 | AG3: 31.49 | AH3: 1.593
A4: 2020-01-06 | B4: 15.696 | C4: 12.935 | D4: 5.566 | E4: 17.413 | F4: 23.317 | G4: 3.243 | H4: 3.385 | I4: 25.3 | J4: 29.687 | K4: 2.909 | L4: 3.387 | M4: 7.675 | N4: 1.621 | O4: 6.501 | P4: 31.426 | Q4: 18.427 | R4: 20.91 | S4: 1.933 | T4: 1.197 | U4: 5.507 | V4: 2.569 | W4: 15.071 | X4: 44.194 | Y4: 5.965 | Z4: 5.299 | AA4: 36.452 | AB4: 2.402 | AC4: 16.744 | AD4: 74.963 | AE4: 3.782 | AF4: 22.601 | AG4: 31.219 | AH4: 1.586
A5: 2020-01-07 | B5: 15.553 | C5: 12.921 | D5: 5.541 | E5: 17.408 | F5: 23.299 | G5: 3.259 | H5: 3.382 | I5: 25.275 | J5: 29.675 | K5: 2.911 | L5: 3.393 | M5: 7.63 | N5: 1.631 | O5: 6.527 | P5: 31.489 | Q5: 18.409 | R5: 20.864 | S5: 1.941 | T5: 1.199 | U5: 5.528 | V5: 2.564 | W5: 15.012 | X5: 44.477 | Y5: 5.954 | Z5: 5.289 | AA5: 36.507 | AB5: 2.397 | AC5: 16.761 | AD5: 74.726 | AE5: 3.786 | AF5: 22.626 | AG5: 31.336 | AH5: 1.583
A6: 2020-01-08 | B6: 15.603 | C6: 12.923 | D6: 5.604 | E6: 17.464 | F6: 23.406 | G6: 3.275 | H6: 3.381 | I6: 25.265 | J6: 29.778 | K6: 2.924 | L6: 3.392 | M6: 7.633 | N6: 1.637 | O6: 6.558 | P6: 31.788 | Q6: 18.428 | R6: 20.906 | S6: 1.948 | T6: 1.209 | U6: 5.544 | V6: 2.565 | W6: 15.092 | X6: 44.797 | Y6: 5.955 | Z6: 5.288 | AA6: 36.821 | AB6: 2.403 | AC6: 16.834 | AD6: 74.892 | AE6: 3.82 | AF6: 22.739 | AG6: 31.478 | AH6: 1.598
A7: 2020-01-09 | B7: 15.598 | C7: 12.913 | D7: 5.589 | E7: 17.412 | F7: 23.365 | G7: 3.28 | H7: 3.379 | I7: 25.255 | J7: 29.613 | K7: 2.926 | L7: 3.392 | M7: 7.595 | N7: 1.641 | O7: 6.55 | P7: 31.903 | Q7: 18.341 | R7: 20.78 | S7: 1.96 | T7: 1.21 | U7: 5.557 | V7: 2.56 | W7: 15.037 | X7: 44.9 | Y7: 5.953 | Z7: 5.285 | AA7: 37.098 | AB7: 2.397 | AC7: 16.817 | AD7: 75.075 | AE7: 3.866 | AF7: 22.733 | AG7: 31.406 | AH7: 1.6
A8: 2020-01-10 | B8: 15.662 | C8: 12.918 | D8: 5.592 | E8: 17.428 | F8: 23.346 | G8: 3.291 | H8: 3.381 | I8: 25.265 | J8: 29.79 | K8: 2.933 | L8: 3.394 | M8: 7.567 | N8: 1.655 | O8: 6.567 | P8: 32.108 | Q8: 18.496 | R8: 20.778 | S8: 1.964 | T8: 1.211 | U8: 5.588 | V8: 2.558 | W8: 15.065 | X8: 45.117 | Y8: 5.95 | Z8: 5.286 | AA8: 37.128 | AB8: 2.395 | AC8: 16.879 | AD8: 75.335 | AE8: 3.875 | AF8: 22.78 | AG8: 31.422 | AH8: 1.598
A9: 2020-01-13 | B9: 15.655 | C9: 12.899 | D9: 5.506 | E9: 17.383 | F9: 23.337 | G9: 3.29 | H9: 3.376 | I9: 25.23 | J9: 29.42 | K9: 2.917 | L9: 3.389 | M9: 7.547 | N9: 1.659 | O9: 6.536 | P9: 32.009 | Q9: 18.389 | R9: 20.639 | S9: 1.959 | T9: 1.207 | U9: 5.582 | V9: 2.55 | W9: 15.045 | X9: 44.935 | Y9: 5.958 | Z9: 5.279 | AA9: 37.057 | AB9: 2.389 | AC9: 16.832 | AD9: 75.051 | AE9: 3.869 | AF9: 22.677 | AG9: 31.28 | AH9: 1.577
A10: 2020-01-14 | B10: 15.615 | C10: 12.863 | D10: 5.463 | E10: 17.316 | F10: 23.365 | G10: 3.288 | H10: 3.366 | I10: 25.155 | J10: 29.383 | K10: 2.91 | L10: 3.379 | M10: 7.56 | N10: 1.656 | O10: 6.527 | P10: 31.954 | Q10: 18.335 | R10: 20.566 | S10: 1.956 | T10: 1.202 | U10: 5.555 | V10: 2.543 | W10: 14.972 | X10: 44.73 | Y10: 5.958 | Z10: 5.263 | AA10: 36.861 | AB10: 2.39 | AC10: 16.792 | AD10: 74.822 | AE10: 3.844 | AF10: 22.634 | AG10: 31.235 | AH10: 1.569
A11: 2020-01-15 | B11: 15.534 | C11: 12.856 | D11: 5.424 | E11: 17.263 | F11: 23.389 | G11: 3.277 | H11: 3.365 | I11: 25.145 | J11: 29.347 | K11: 2.904 | L11: 3.378 | M11: 7.553 | N11: 1.651 | O11: 6.522 | P11: 31.875 | Q11: 18.408 | R11: 20.539 | S11: 1.95 | T11: 1.2 | U11: 5.537 | V11: 2.544 | W11: 14.874 | X11: 44.486 | Y11: 5.95 | Z11: 5.259 | AA11: 36.741 | AB11: 2.381 | AC11: 16.751 | AD11: 74.588 | AE11: 3.834 | AF11: 22.567 | AG11: 31.156 | AH11: 1.569
A12: 2020-01-16 | B12: 15.622 | C12: 12.87 | D12: 5.411 | E12: 17.294 | F12: 23.44 | G12: 3.276 | H12: 3.368 | I12: 25.17 | J12: 29.448 | K12: 2.9 | L12: 3.38 | M12: 7.54 | N12: 1.654 | O12: 6.526 | P12: 31.779 | Q12: 18.372 | R12: 20.497 | S12: 1.945 | T12: 1.199 | U12: 5.546 | V12: 2.541 | W12: 15.012 | X12: 44.33 | Y12: 5.947 | Z12: 5.266 | AA12: 36.587 | AB12: 2.382 | AC12: 16.753 | AD12: 74.222 | AE12: 3.856 | AF12: 22.538 | AG12: 31.135 | AH12: 1.562
A13: 2020-01-17 | B13: 15.599 | C13: 12.856 | D13: 5.418 | E13: 17.345 | F13: 23.424 | G13: 3.301 | H13: 3.365 | I13: 25.145 | J13: 29.546 | K13: 2.914 | L13: 3.381 | M13: 7.493 | N13: 1.66 | O13: 6.553 | P13: 31.856 | Q13: 18.301 | R13: 20.558 | S13: 1.952 | T13: 1.207 | U13: 5.584 | V13: 2.543 | W13: 14.987 | X13: 44.466 | Y13: 5.935 | Z13: 5.259 | AA13: 36.837 | AB13: 2.385 | AC13: 16.808 | AD13: 74.565 | AE13: 3.853 | AF13: 22.638 | AG13: 31.293 | AH13: 1.566
A14: 2020-01-20 | B14: 15.555 | C14: 12.847 | D14: 5.42 | E14: 17.345 | F14: 23.4 | G14: 3.301 | H14: 3.362 | I14: 25.125 | J14: 29.466 | K14: 2.918 | L14: 3.379 | M14: 7.469 | N14: 1.663 | O14: 6.555 | P14: 31.89 | Q14: 18.259 | R14: 20.571 | S14: 1.954 | T14: 1.214 | U14: 5.581 | V14: 2.543 | W14: 14.958 | X14: 44.48 | Y14: 5.921 | Z14: 5.257 | AA14: 36.833 | AB14: 2.38 | AC14: 16.816 | AD14: 74.672 | AE14: 3.83 | AF14: 22.667 | AG14: 31.294 | AH14: 1.56
A15: 2020-01-21 | B15: 15.5 | C15: 12.816 | D15: 5.373 | E15: 17.269 | F15: 23.332 | G15: 3.268 | H15: 3.354 | I15: 25.065 | J15: 29.477 | K15: 2.902 | L15: 3.37 | M15: 7.475 | N15: 1.651 | O15: 6.526 | P15: 31.675 | Q15: 18.189 | R15: 20.493 | S15: 1.931 | T15: 1.204 | U15: 5.539 | V15: 2.523 | W15: 14.916 | X15: 44.202 | Y15: 5.906 | Z15: 5.245 | AA15: 36.472 | AB15: 2.375 | AC15: 16.717 | AD15: 74.183 | AE15: 3.801 | AF15: 22.552 | AG15: 31.135 | AH15: 1.558
A16: 2020-01-22 | B16: 15.535 | C16: 12.851 | D16: 5.409 | E16: 17.379 | F16: 23.365 | G16: 3.285 | H16: 3.363 | I16: 25.135 | J16: 29.763 | K16: 2.917 | L16: 3.379 | M16: 7.489 | N16: 1.661 | O16: 6.566 | P16: 31.866 | Q16: 18.24 | R16: 20.613 | S16: 1.947 | T16: 1.211 | U16: 5.577 | V16: 2.524 | W16: 14.979 | X16: 44.486 | Y16: 5.931 | Z16: 5.259 | AA16: 36.591 | AB16: 2.382 | AC16: 16.808 | AD16: 74.621 | AE16: 3.827 | AF16: 22.668 | AG16: 31.275 | AH16: 1.574
A17: 2020-01-23 | B17: 15.582 | C17: 12.864 | D17: 5.441 | E17: 17.237 | F17: 23.441 | G17: 3.272 | H17: 3.367 | I17: 25.16 | J17: 29.778 | K17: 2.919 | L17: 3.38 | M17: 7.462 | N17: 1.664 | O17: 6.563 | P17: 31.812 | Q17: 18.258 | R17: 20.707 | S17: 1.943 | T17: 1.212 | U17: 5.574 | V17: 2.524 | W17: 14.98 | X17: 44.531 | Y17: 5.929 | Z17: 5.265 | AA17: 36.663 | AB17: 2.385 | AC17: 16.806 | AD17: 74.308 | AE17: 3.826 | AF17: 22.686 | AG17: 31.286 | AH17: 1.577
A18: 2020-01-24 | B18: 15.601 | C18: 12.864 | D18: 5.46 | E18: 17.361 | F18: 23.49 | G18: 3.287 | H18: 3.367 | I18: 25.16 | J18: 29.836 | K18: 2.933 | L18: 3.382 | M18: 7.488 | N18: 1.68 | O18: 6.603 | P18: 31.985 | Q18: 18.311 | R18: 20.801 | S18: 1.952 | T18: 1.214 | U18: 5.608 | V18: 2.532 | W18: 15.081 | X18: 44.851 | Y18: 5.911 | Z18: 5.264 | AA18: 36.91 | AB18: 2.388 | AC18: 16.875 | AD18: 74.619 | AE18: 3.839 | AF18: 22.798 | AG18: 31.452 | AH18: 1.586
A19: 2020-01-27 | B19: 15.487 | C19: 12.899 | D19: 5.43 | E19: 17.351 | F19: 23.602 | G19: 3.299 | H19: 3.376 | I19: 25.23 | J19: 29.903 | K19: 2.942 | L19: 3.39 | M19: 7.475 | N19: 1.682 | O19: 6.613 | P19: 32.038 | Q19: 18.362 | R19: 21.004 | S19: 1.943 | T19: 1.209 | U19: 5.629 | V19: 2.514 | W19: 15.002 | X19: 44.984 | Y19: 5.907 | Z19: 5.277 | AA19: 36.543 | AB19: 2.385 | AC19: 16.858 | AD19: 74.49 | AE19: 3.848 | AF19: 22.883 | AG19: 31.511 | AH19: 1.573
A20: 2020-01-28 | B20: 15.482 | C20: 12.895 | D20: 5.459 | E20: 17.372 | F20: 23.564 | G20: 3.304 | H20: 3.375 | I20: 25.22 | J20: 29.81 | K20: 2.947 | L20: 3.39 | M20: 7.48 | N20: 1.68 | O20: 6.631 | P20: 32.146 | Q20: 18.382 | R20: 21.013 | S20: 1.944 | T20: 1.216 | U20: 5.608 | V20: 2.503 | W20: 14.973 | X20: 45.132 | Y20: 5.902 | Z20: 5.278 | AA20: 36.601 | AB20: 2.379 | AC20: 16.87 | AD20: 74.354 | AE20: 3.852 | AF20: 22.916 | AG20: 31.538 | AH20: 1.564
A21: 2020-01-29 | B21: 15.465 | C21: 12.887 | D21: 5.47 | E21: 17.389 | F21: 23.492 | G21: 3.303 | H21: 3.373 | I21: 25.205 | J21: 29.801 | K21: 2.948 | L21: 3.387 | M21: 7.471 | N21: 1.681 | O21: 6.626 | P21: 32.144 | Q21: 18.547 | R21: 20.995 | S21: 1.944 | T21: 1.223 | U21: 5.616 | V21: 2.506 | W21: 14.942 | X21: 45.071 | Y21: 5.884 | Z21: 5.276 | AA21: 36.542 | AB21: 2.383 | AC21: 16.837 | AD21: 73.983 | AE21: 3.845 | AF21: 22.913 | AG21: 31.509 | AH21: 1.568
A22: 2020-01-30 | B22: 15.385 | C22: 12.909 | D22: 5.392 | E22: 17.328 | F22: 23.619 | G22: 3.301 | H22: 3.379 | I22: 25.25 | J22: 29.993 | K22: 2.947 | L22: 3.393 | M22: 7.463 | N22: 1.678 | O22: 6.631 | P22: 31.954 | Q22: 18.58 | R22: 21.036 | S22: 1.92 | T22: 1.22 | U22: 5.6 | V22: 2.482 | W22: 14.878 | X22: 44.892 | Y22: 5.89 | Z22: 5.286 | AA22: 36.243 | AB22: 2.373 | AC22: 16.8 | AD22: 73.391 | AE22: 3.83 | AF22: 22.894 | AG22: 31.48 | AH22: 1.552
A23: 2020-01-31 | B23: 15.285 | C23: 12.889 | D23: 5.346 | E23: 17.234 | F23: 23.577 | G23: 3.288 | H23: 3.373 | I23: 25.21 | J23: 29.95 | K23: 2.937 | L23: 3.386 | M23: 7.48 | N23: 1.67 | O23: 6.618 | P23: 31.949 | Q23: 18.496 | R23: 20.947 | S23: 1.908 | T23: 1.212 | U23: 5.566 | V23: 2.474 | W23: 14.756 | X23: 44.713 | Y23: 5.862 | Z23: 5.274 | AA23: 35.844 | AB23: 2.361 | AC23: 16.704 | AD23: 73.18 | AE23: 3.813 | AF23: 22.81 | AG23: 31.385 | AH23: 1.528
A24: 2020-02-03 | B24: 15.239 | C24: 12.872 | D24: 5.338 | E24: 17.187 | F24: 23.59 | G24: 3.243 | H24: 3.369 | I24: 25.175 | J24: 29.697 | K24: 2.93 | L24: 3.383 | M24: 7.456 | N24: 1.655 | O24: 6.602 | P24: 31.866 | Q24: 18.336 | R24: 20.961 | S24: 1.908 | T24: 1.21 | U24: 5.53 | V24: 2.454 | W24: 14.717 | X24: 44.722 | Y24: 5.859 | Z24: 5.268 | AA24: 35.659 | AB24: 2.357 | AC24: 16.63 | AD24: 73.285 | AE24: 3.802 | AF24: 22.75 | AG24: 31.325 | AH24: 1.527

Sheet List1 (hidden)
H1: 2020-01-01 | P1: počet dní
A2: 1 | H2: 2020-12-31 | K2: ano | L2: JE | N2: ZO PF UK | P2: =Příkaz!F14-Příkaz!F6+1 -> 1 | Q2: =VALUE(RIGHT(P2,1)) -> 1 | R2: =P2&" "&VLOOKUP(Q2,P6:Q15,2,FALSE) -> 1 den | V2: Země | W2: Měnový kód | X2: Měna | Y2: Základní sazby zahraničního stravného
A3: 2 | B3: V | C3: Vlak | K3: ne | L3: NENÍ | N3: jinak | R3: CZK | S3: CZK | T3: 0 | U3: 1 | V3: Afghánistán | W3: EUR | X3: euro | Y3: 40
A4: 3 | B4: A | C4: Autobus | I4: CZK | R4: EUR | S4: AUD | T4: 2 | U4: 1 | V4: Albánie | W4: EUR | X4: euro | Y4: 35
A5: 4 | B5: L | C5: Letadlo | I5: EUR | K5: Ne | R5: GBP | S5: BGN | T5: 3 | U5: 1 | V5: Alžírsko | W5: EUR | X5: euro | Y5: 45
A6: 5 | B6: SV | C6: Služební silniční vozidlo | I6: USD | K6: Ano, v hotovosti | N6: ZO PF UK | P6: 0 | Q6: dní | R6: PLN | S6: BRL | T6: 4 | U6: 1 | V6: Andorra | W6: EUR | X6: euro | Y6: 45
A7: 6 | B7: SJ | C7: Spolujízda | I7: GBP | K7: Ano, na bank. účet | N7: vyjíždějící | P7: 1 | Q7: den | R7: USD | S7: CAD | T7: 5 | U7: 1 | V7: Angola | W7: USD | X7: americký dolar | Y7: 60
A8: 7 | B8: VV | C8: Vlastní silniční vozidlo - náhrada za každý km jízdy | I8: AUD | P8: 2 | Q8: dny | S8: CHF | T8: 6 | U8: 1 | V8: Argentina | W8: USD | X8: americký dolar | Y8: 50
A9: 8 | B9: V - VV | C9: Vlastní vozidlo s náhradou výdajů za vlak | I9: BRL | P9: 3 | Q9: dny | S9: CNY | T9: 7 | U9: 1 | V9: Arménie | W9: EUR | X9: euro | Y9: 35
A10: 9 | B10: A - VV | C10: Vlastní vozidlo s náhradou výdajů za autobus | I10: BGN | P10: 4 | Q10: dny | S10: DKK | T10: 8 | U10: 1 | V10: Austrálie a Oceánie – ostrovní státy1) | W10: USD | X10: americký dolar | Y10: 60
A11: 10 | B11: L - VV | C11: Vlastní vozidlo s náhradou výdajů za letadlo | I11: CNY | P11: 5 | Q11: dní | S11: EUR | T11: 9 | U11: 1 | V11: Ázerbájdžán | W11: EUR | X11: euro | Y11: 40
A12: 11 | I12: DKK | P12: 6 | Q12: dní | S12: GBP | T12: 10 | U12: 1 | V12: Bahamy | W12: USD | X12: americký dolar | Y12: 55
A13: 12 | B13: S | I13: PHP | P13: 7 | Q13: dní | S13: HKD | T13: 11 | U13: 1 | V13: Bahrajn | W13: EUR | X13: euro | Y13: 45
A14: 13 | B14: O | I14: HKD | P14: 8 | Q14: dní | S14: HRK | T14: 12 | U14: 1 | V14: Bangladéš | W14: USD | X14: americký dolar | Y14: 50
A15: 14 | B15: V | I15: HRK | P15: 9 | Q15: dní | S15: HUF | T15: 13 | U15: 100 | V15: Belgie | W15: EUR | X15: euro | Y15: 50
A16: 15 | B16: SO | I16: INR | S16: IDR | T16: 14 | U16: 1000 | V16: Belize | W16: USD | X16: americký dolar | Y16: 50
A17: 16 | B17: SV | I17: IDR | S17: ILS | T17: 15 | U17: 1 | V17: Benin | W17: EUR | X17: euro | Y17: 45
A18: 17 | B18: OV | I18: ISK | S18: INR | T18: 16 | U18: 100 | V18: Bermudy | W18: USD | X18: americký dolar | Y18: 50
A19: 18 | B19: SOV | I19: ILS | S19: ISK | T19: 17 | U19: 100 | V19: Bělorusko | W19: EUR | X19: euro | Y19: 45
A20: 19 | I20: JPY | S20: JPY | T20: 18 | U20: 100 | V20: Bhútán | W20: USD | X20: americký dolar | Y20: 50
A21: 20 | I21: ZAR | S21: KRW | T21: 19 | U21: 100 | V21: Bolívie | W21: USD | X21: americký dolar | Y21: 50
A22: 21 | B22: 110 | C22: Z | D22: 1 | I22: CAD | S22: MXN | T22: 20 | U22: 1 | V22: Bosna a Hercegovina | W22: EUR | X22: euro | Y22: 40
A23: 22 | B23: 1010 | C23: P | D23: 2 | I23: KRW | S23: MYR | T23: 21 | U23: 1 | V23: Botswana | W23: USD | X23: americký dolar | Y23: 55
A24: 23 | B24: 1001 | C24: K | D24: 3 | I24: HUF | S24: NOK | T24: 22 | U24: 1 | V24: Brazílie | W24: USD | X24: americký dolar | Y24: 55
A25: 24 | B25: 101 | C25: S | D25: 4 | I25: MYR | S25: NZD | T25: 23 | U25: 1 | V25: Brunej | W25: USD | X25: americký dolar | Y25: 40
A26: 25 | B26: 0 | C26: 0 | D26: 5 | I26: MXN | S26: PHP | T26: 24 | U26: 100 | V26: Bulharsko | W26: EUR | X26: euro | Y26: 35
A27: 26 | I27: XDR | S27: PLN | T27: 25 | U27: 1 | V27: Burkina Faso | W27: EUR | X27: euro | Y27: 40
A28: 27 | I28: NOK | S28: RON | T28: 26 | U28: 1 | V28: Burundi | W28: USD | X28: americký dolar | Y28: 55
A29: 28 | I29: NZD | S29: RUB | T29: 27 | U29: 100 | V29: Čad | W29: EUR | X29: euro | Y29: 45
A30: 29 | I30: PLN | S30: SEK | T30: 28 | U30: 1 | V30: Černá Hora | W30: EUR | X30: euro | Y30: 35
A31: 30 | I31: RON | S31: SGD | T31: 29 | U31: 1 | V31: Čína | W31: EUR | X31: euro | Y31: 45
A32: 31 | I32: RUB | S32: THB | T32: 30 | U32: 100 | V32: Dánsko | W32: EUR | X32: euro | Y32: 55
A33: 32 | I33: SGD | S33: TRY | T33: 31 | U33: 1 | V33: Džibuti | W33: EUR | X33: euro | Y33: 50
A34: 33 | I34: SEK | S34: USD | T34: 32 | U34: 1 | V34: Egypt | W34: EUR | X34: euro | Y34: 35
A35: 34 | I35: CHF | S35: XDR | T35: 33 | U35: 1 | V35: Ekvádor | W35: USD | X35: americký dolar | Y35: 50
A36: 35 | I36: THB | S36: ZAR | T36: 34 | U36: 1 | V36: Eritrea | W36: USD | X36: americký dolar | Y36: 50
A37: 36 | I37: TRY | T37: =RIGHT(S37,3) ->  | V37: Estonsko | W37: EUR | X37: euro | Y37: 40
A38: 37 | V38: Etiopie | W38: EUR | X38: euro | Y38: 45
A39: 38 | V39: Filipíny | W39: EUR | X39: euro | Y39: 35
A40: 39 | V40: Finsko | W40: EUR | X40: euro | Y40: 50
A41: 40 | V41: Francie | W41: EUR | X41: euro | Y41: 45
A42: 41 | V42: Francouzská Guayana | W42: EUR | X42: euro | Y42: 45
A43: 42 | V43: Gabon | W43: EUR | X43: euro | Y43: 50
A44: 43 | V44: Gambie | W44: EUR | X44: euro | Y44: 45
A45: 44 | V45: Ghana | W45: EUR | X45: euro | Y45: 50
A46: 45 | V46: Gibraltar | W46: EUR | X46: euro | Y46: 40
A47: 46 | V47: Gruzie | W47: EUR | X47: euro | Y47: 35
A48: 47 | V48: Guatemala | W48: USD | X48: americký dolar | Y48: 45
A49: 48 | V49: Guinea | W49: EUR | X49: euro | Y49: 45
A50: 49 | V50: Guinea-Bissau | W50: EUR | X50: euro | Y50: 45
A51: 50 | V51: Guyana | W51: USD | X51: americký dolar | Y51: 50
A52: 51 | V52: Honduras | W52: USD | X52: americký dolar | Y52: 45
A53: 52 | V53: Hongkong | W53: EUR | X53: euro | Y53: 45
A54: 53 | V54: Chile | W54: USD | X54: americký dolar | Y54: 55
A55: 54 | V55: Chorvatsko | W55: EUR | X55: euro | Y55: 35
A56: 55 | V56: Indie | W56: EUR | X56: euro | Y56: 45
A57: 56 | V57: Indonésie | W57: EUR | X57: euro | Y57: 35
A58: 57 | V58: Irák | W58: EUR | X58: euro | Y58: 40
A59: 58 | V59: Írán | W59: EUR | X59: euro | Y59: 40
A60: 59 | V60: Irsko | W60: EUR | X60: euro | Y60: 50
A61: 60 | V61: Island | W61: EUR | X61: euro | Y61: 60
A62: 61 | V62: Itálie, Vatikán a San Marino | W62: EUR | X62: euro | Y62: 50
V63: Izrael | W63: USD | X63: americký dolar | Y63: 55
V64: Japonsko | W64: USD | X64: americký dolar | Y64: 65
V65: Jemen | W65: EUR | X65: euro | Y65: 35
V66: Jihoafrická republika | W66: EUR | X66: euro | Y66: 40
V67: Jižní Súdán | W67: USD | X67: americký dolar | Y67: 55
V68: Jordánsko | W68: EUR | X68: euro | Y68: 45
T69: =RIGHT(S69,3) ->  | V69: Kambodža | W69: USD | X69: americký dolar | Y69: 45
V70: Kamerun | W70: EUR | X70: euro | Y70: 45
V71: Kanada | W71: USD | X71: americký dolar | Y71: 50
V72: Kapverdy | W72: EUR | X72: euro | Y72: 40
V73: Karibik – ostrovní státy2) | W73: USD | X73: americký dolar | Y73: 55
V74: Katar | W74: USD | X74: americký dolar | Y74: 50
V75: Kazachstán | W75: EUR | X75: euro | Y75: 45
V76: Keňa | W76: EUR | X76: euro | Y76: 45
V77: Kolumbie | W77: USD | X77: americký dolar | Y77: 45
V78: Komory | W78: USD | X78: americký dolar | Y78: 55
V79: Konžská republika (Brazzaville) | W79: USD | X79: americký dolar | Y79: 60
V80: Konžská demokratická republika (Kinshasa) | W80: EUR | X80: euro | Y80: 50
V81: Korejská lidově demokratická republika | W81: EUR | X81: euro | Y81: 45
V82: Korejská republika | W82: EUR | X82: euro | Y82: 50
V83: Kosovo | W83: EUR | X83: euro | Y83: 45
V84: Kostarika | W84: USD | X84: americký dolar | Y84: 50
V85: Kuba | W85: EUR | X85: euro | Y85: 50
V86: Kuvajt | W86: EUR | X86: euro | Y86: 40
V87: Kypr | W87: EUR | X87: euro | Y87: 40
V88: Kyrgyzstán | W88: EUR | X88: euro | Y88: 40
V89: Laos | W89: USD | X89: americký dolar | Y89: 45
V90: Lesotho | W90: USD | X90: americký dolar | Y90: 50
V91: Libanon | W91: USD | X91: americký dolar | Y91: 55
V92: Libérie | W92: EUR | X92: euro | Y92: 45
V93: Libye | W93: EUR | X93: euro | Y93: 45
V94: Lichtenštejnsko | W94: CHF | X94: švýcarský frank | Y94: 60
V95: Litva | W95: EUR | X95: euro | Y95: 40
V96: Lotyšsko | W96: EUR | X96: euro | Y96: 40
V97: Lucembursko | W97: EUR | X97: euro | Y97: 50
V98: Macao | W98: EUR | X98: euro | Y98: 45
V99: Madagaskar | W99: EUR | X99: euro | Y99: 40
V100: Maďarsko | W100: EUR | X100: euro | Y100: 35
V101: Malajsie | W101: USD | X101: americký dolar | Y101: 45
V102: Malawi | W102: USD | X102: americký dolar | Y102: 45
V103: Maledivy | W103: USD | X103: americký dolar | Y103: 55
V104: Mali | W104: EUR | X104: euro | Y104: 45
V105: Malta | W105: EUR | X105: euro | Y105: 50
V106: Maroko | W106: EUR | X106: euro | Y106: 40
V107: Mauretánie | W107: EUR | X107: euro | Y107: 40
V108: Mauricius | W108: USD | X108: americký dolar | Y108: 55
V109: Mexiko | W109: USD | X109: americký dolar | Y109: 50
V110: Moldavsko | W110: EUR | X110: euro | Y110: 40
V111: Monako | W111: EUR | X111: euro | Y111: 45
V112: Mongolsko | W112: EUR | X112: euro | Y112: 40
V113: Mozambik | W113: USD | X113: americký dolar | Y113: 50
V114: Myanmar (Barma) | W114: USD | X114: americký dolar | Y114: 50
V115: Namibie | W115: USD | X115: americký dolar | Y115: 50
V116: Německo | W116: EUR | X116: euro | Y116: 45
V117: Nepál | W117: USD | X117: americký dolar | Y117: 50
V118: Niger | W118: EUR | X118: euro | Y118: 45
V119: Nigérie | W119: EUR | X119: euro | Y119: 45
V120: Nikaragua | W120: USD | X120: americký dolar | Y120: 45
V121: Nizozemsko | W121: EUR | X121: euro | Y121: 50
V122: Norsko | W122: EUR | X122: euro | Y122: 60
V123: Nový Zéland | W123: USD | X123: americký dolar | Y123: 60
V124: Omán | W124: EUR | X124: euro | Y124: 50
V125: Pákistán | W125: EUR | X125: euro | Y125: 35
V126: Panama | W126: USD | X126: americký dolar | Y126: 45
V127: Paraguay | W127: USD | X127: americký dolar | Y127: 45
V128: Peru | W128: USD | X128: americký dolar | Y128: 50
V129: Pobřeží Slonoviny | W129: EUR | X129: euro | Y129: 40
V130: Polsko | W130: EUR | X130: euro | Y130: 40
V131: Portugalsko a Azory | W131: EUR | X131: euro | Y131: 40
V132: Rakousko | W132: EUR | X132: euro | Y132: 45
T133: =RIGHT(S133,3) ->  | V133: Rovníková Guinea | W133: EUR | X133: euro | Y133: 45
V134: Rumunsko | W134: EUR | X134: euro | Y134: 35
V135: Rusko | W135: EUR | X135: euro | Y135: 45
V136: Rwanda | W136: USD | X136: americký dolar | Y136: 55
V137: Řecko | W137: EUR | X137: euro | Y137: 40
V138: Salvador | W138: USD | X138: americký dolar | Y138: 45
V139: San Marino | W139: EUR | X139: euro | Y139: 50
V140: Saúdská Arábie | W140: EUR | X140: euro | Y140: 50
V141: Senegal | W141: EUR | X141: euro | Y141: 45
V142: Severní Makedonie | W142: EUR | X142: euro | Y142: 35
V143: Seychely | W143: USD | X143: americký dolar | Y143: 60
V144: Sierra Leone | W144: EUR | X144: euro | Y144: 40
V145: Singapur | W145: USD | X145: americký dolar | Y145: 60
V146: Spojené arabské emiráty | W146: USD | X146: americký dolar | Y146: 55
V147: Slovensko | W147: EUR | X147: euro | Y147: 35
V148: Slovinsko | W148: EUR | X148: euro | Y148: 35
V149: Somálsko | W149: USD | X149: americký dolar | Y149: 55
V150: Spojené státy americké | W150: USD | X150: americký dolar | Y150: 60
V151: Srbsko | W151: EUR | X151: euro | Y151: 35
V152: Srí Lanka | W152: USD | X152: americký dolar | Y152: 50
V153: Středoafrická republika | W153: USD | X153: americký dolar | Y153: 50
V154: Súdán | W154: USD | X154: americký dolar | Y154: 55
V155: Surinam | W155: USD | X155: americký dolar | Y155: 50
V156: Svatý Tomáš a Princův ostrov | W156: EUR | X156: euro | Y156: 35
V157: Svazijsko | W157: USD | X157: americký dolar | Y157: 55
V158: Sýrie | W158: EUR | X158: euro | Y158: 50
V159: Španělsko | W159: EUR | X159: euro | Y159: 45
V160: Švédsko | W160: EUR | X160: euro | Y160: 50
V161: Švýcarsko | W161: CHF | X161: švýcarský frank | Y161: 75
V162: Tádžikistán | W162: EUR | X162: euro | Y162: 40
V163: Tanzanie | W163: USD | X163: americký dolar | Y163: 55
V164: Thajsko | W164: EUR | X164: euro | Y164: 40
V165: Tchaj-wan | W165: EUR | X165: euro | Y165: 40
V166: Togo | W166: EUR | X166: euro | Y166: 40
V167: Tunisko | W167: EUR | X167: euro | Y167: 45
V168: Turecko | W168: EUR | X168: euro | Y168: 40
V169: Turkmenistán | W169: EUR | X169: euro | Y169: 40
V170: Uganda | W170: USD | X170: americký dolar | Y170: 55
V171: Ukrajina | W171: EUR | X171: euro | Y171: 45
V172: Uruguay | W172: USD | X172: americký dolar | Y172: 50
V173: Uzbekistán | W173: EUR | X173: euro | Y173: 40
V174: Vatikán | W174: EUR | X174: euro | Y174: 50
V175: Velká Británie | W175: GBP | X175: anglická libra | Y175: 45
V176: Venezuela | W176: USD | X176: americký dolar | Y176: 65
V177: Vietnam | W177: EUR | X177: euro | Y177: 40
V178: Zambie | W178: USD | X178: americký dolar | Y178: 55
V179: Zimbabwe | W179: USD | X179: americký dolar | Y179: 50
V180: ostatní země neuvedené v příloze | W180: EUR | X180: euro | Y180: 35
